Workbook

Sheet Dashboard
A1: Sent this month: | D1: 5440 | F1: Left process at stage 1: | J1: 1011 | L1: Left process at stage 2: | P1: 60 | R1: Exited process: | V1: 408 | X1: Settled: | AA1: 371
A3: Δ from last month: | D3: 271 | F3: Δ from last month: | J3: 135 | L3: Δ from last month: | P3: 5 | R3: Δ from last month: | V3: 32 | X3: Δ from last month: | AA3: 14
A5: Rolling 12 months: | D5: 74330 | F5: Rolling 12 months: | J5: 13829 | L5: Rolling 12 months: | P5: 893 | R5: Rolling 12 months: | V5: 6449 | X5: Rolling 12 months: | AA5: 4074
A7: Left Process Breakdowns - Stage 1:
A9: Reason | H9: This Month | J9: Last Month | L9: Δ
A10: Liability Decision Timeout | H10: 831 | J10: 751 | L10: 80
A11: Other | H11: 174 | J11: 119 | L11: 55
A12: Total | H12: 1005 | J12: 870 | L12: 135
A13: Left Process Breakdowns - Stage 2:
A15: Reason | H15: This Month | J15: Last Month | L15: Δ
A16: Interim payment more than £1,000 not agreed: | H16: 0 | J16: 1 | L16: -1
A17: Settlement pack repudiated: | H17: 1 | J17: 1 | L17: 0
A18: Settlement pack timeout: | H18: 32 | J18: 24 | L18: 8
A19: No agreement; Court Proceedings pack: | H19: 27 | J19: 29 | L19: -2
A20: Total | H20: 60 | J20: 55 | L20: 5

Sheet Backing Sheet Data
A1: Reporting date | B1: 2024-03-01
A2: Previous month | B2: 2024-02-01
A4: Rolling 12 CNFs sent | E4: Average General Damages chart data | I4: Left Process Breakdown
A6: Period | B6: Rolling 12 Sent | E6: Row Labels | F6: Ave General Damages | I6: This Month LDT | J6: This Month Other Liability | K6: This Month Interim Payment Not Agreed | L6: This Month Repudiated | M6: This Month Timeout | N6: This Month Court Proceedings
A7: 2023-04-01 | B7: 72917 | E7: 2023-04-01 | F7: 6045.194065 | I7: 831 | J7: 174 | K7: 0 | L7: 1 | M7: 32 | N7: 27
A8: 2023-05-01 | B8: 72689 | E8: 2023-05-01 | F8: 5434.386257
A9: 2023-06-01 | B9: 73409 | E9: 2023-06-01 | F9: 5958.593225 | I9: CNF Sent Monthly Volumes Chart Data
A10: 2023-07-01 | B10: 73893 | E10: 2023-07-01 | F10: 5851.862478
A11: 2023-08-01 | B11: 74140 | E11: 2023-08-01 | F11: 6023.678333 | I11: Sum of ClaimCount | J11: Column Labels
A12: 2023-09-01 | B12: 76874 | E12: 2023-09-01 | F12: 5718.603877 | I12: Row Labels | J12: RTA | K12: PL | L12: ELD | M12: EL | N12: Grand Total
A13: 2023-10-01 | B13: 76827 | E13: 2023-10-01 | F13: 5677.757692 | I13: 2023-04-01 | J13: 6113 | K13: 2733 | L13: 543 | M13: 2150 | N13: 11539
A14: 2023-11-01 | B14: 76608 | E14: 2023-11-01 | F14: 5839.191111 | I14: 2023-05-01 | J14: 6862 | K14: 3171 | L14: 614 | M14: 2215 | N14: 12862
A15: 2023-12-01 | B15: 76367 | E15: 2023-12-01 | F15: 6303.947282 | I15: 2023-06-01 | J15: 7700 | K15: 3451 | L15: 640 | M15: 2560 | N15: 14351
A16: 2024-01-01 | B16: 76071 | E16: 2024-01-01 | F16: 5352.929913 | I16: 2023-07-01 | J16: 7297 | K16: 3350 | L16: 695 | M16: 2469 | N16: 13811
A17: 2024-02-01 | B17: 75647 | E17: 2024-02-01 | F17: 4278.272795 | I17: 2023-08-01 | J17: 7471 | K17: 3399 | L17: 1003 | M17: 2449 | N17: 14322
A18: 2024-03-01 | B18: 74330 | E18: 2024-03-01 | F18: 2797.388059 | I18: 2023-09-01 | J18: 7021 | K18: 3144 | L18: 3522 | M18: 2368 | N18: 16055
E19: Grand Total | F19: 65281.80509 | I19: 2023-10-01 | J19: 7839 | K19: 3328 | L19: 423 | M19: 2490 | N19: 14080
I20: 2023-11-01 | J20: 7729 | K20: 3237 | L20: 468 | M20: 2526 | N20: 13960
I21: 2023-12-01 | J21: 5709 | K21: 2263 | L21: 211 | M21: 1619 | N21: 9802
B22: 13291 | E22: CNF Sent Monthly Volumes | I22: 2024-01-01 | J22: 7494 | K22: 3163 | L22: 452 | M22: 2496 | N22: 13605
A23: Exit Process Reason | B23: Total | I23: 2024-02-01 | J23: 7275 | K23: 3037 | L23: 437 | M23: 2264 | N23: 13013
A24: Claim requires further investigation | B24: 6939 | E24: DatePeriod | F24: ClaimType | G24: ClaimCount | I24: 2024-03-01 | J24: 6584 | K24: 2708 | L24: 564 | M24: 2168 | N24: 12024
A25: Other | B25: 4842 | E25: 2023-01-01 | F25: RTA | G25: 1493 | I25: Grand Total | J25: 85094 | K25: 36984 | L25: 9572 | M25: 27774 | N25: 159424
A26: Duplicated claim | B26: 405 | E26: 2023-02-01 | F26: RTA | G26: 7486
A27: Value of claim exceeds the upper limit | B27: 316 | E27: 2023-03-01 | F27: RTA | G27: 7470
A28: Failure to provide adequate loss of earnings details | B28: 276 | E28: 2023-04-01 | F28: RTA | G28: 6113
A29: Incomplete information provided on CNF | B29: 257 | E29: 2023-05-01 | F29: RTA | G29: 6862
A30: Stage 1 costs not paid on time | B30: 99 | E30: 2023-06-01 | F30: RTA | G30: 7700
A31: Withdrawl of claim | B31: 45 | E31: 2023-07-01 | F31: RTA | G31: 7297
A32: Claim is too complex for process | B32: 37 | E32: 2023-08-01 | F32: RTA | G32: 7471
A33: Interim Payment request not answered and/or paid on time | B33: 28 | E33: 2023-09-01 | F33: RTA | G33: 7021
A34: Withdrawal of offer | B34: 23 | E34: 2023-10-01 | F34: RTA | G34: 7839
A35: Value of claim below £1,000 | B35: 15 | E35: 2023-11-01 | F35: RTA | G35: 7729
A36: Failure to acknowledge CNF on time | B36: 6 | E36: 2023-12-01 | F36: RTA | G36: 5709
A37: Interim Payment partial offer not accepted | B37: 3 | E37: 2024-01-01 | F37: RTA | G37: 7494
E38: 2024-02-01 | F38: RTA | G38: 7275
E39: 2024-03-01 | F39: RTA | G39: 6584
E40: 2023-01-01 | F40: EL | G40: 504
E41: 2023-02-01 | F41: EL | G41: 2355
E42: 2023-03-01 | F42: EL | G42: 2656
E43: 2023-04-01 | F43: EL | G43: 2150
E44: 2023-05-01 | F44: EL | G44: 2215
E45: 2023-06-01 | F45: EL | G45: 2560
E46: 2023-07-01 | F46: EL | G46: 2469
E47: 2023-08-01 | F47: EL | G47: 2449
E48: 2023-09-01 | F48: EL | G48: 2368
E49: 2023-10-01 | F49: EL | G49: 2490
E50: 2023-11-01 | F50: EL | G50: 2526
E51: 2023-12-01 | F51: EL | G51: 1619
E52: 2024-01-01 | F52: EL | G52: 2496
E53: 2024-02-01 | F53: EL | G53: 2264
E54: 2024-03-01 | F54: EL | G54: 2168
E55: 2023-01-01 | F55: ELD | G55: 90
E56: 2023-02-01 | F56: ELD | G56: 521
E57: 2023-03-01 | F57: ELD | G57: 533
E58: 2023-04-01 | F58: ELD | G58: 543
E59: 2023-05-01 | F59: ELD | G59: 614
E60: 2023-06-01 | F60: ELD | G60: 640
E61: 2023-07-01 | F61: ELD | G61: 695
E62: 2023-08-01 | F62: ELD | G62: 1003
E63: 2023-09-01 | F63: ELD | G63: 3522
E64: 2023-10-01 | F64: ELD | G64: 423
E65: 2023-11-01 | F65: ELD | G65: 468
E66: 2023-12-01 | F66: ELD | G66: 211
E67: 2024-01-01 | F67: ELD | G67: 452
E68: 2024-02-01 | F68: ELD | G68: 437
E69: 2024-03-01 | F69: ELD | G69: 564
E70: 2023-01-01 | F70: PL | G70: 667
E71: 2023-02-01 | F71: PL | G71: 3297
E72: 2023-03-01 | F72: PL | G72: 3568
E73: 2023-04-01 | F73: PL | G73: 2733
E74: 2023-05-01 | F74: PL | G74: 3171
E75: 2023-06-01 | F75: PL | G75: 3451
E76: 2023-07-01 | F76: PL | G76: 3350
E77: 2023-08-01 | F77: PL | G77: 3399
E78: 2023-09-01 | F78: PL | G78: 3144
E79: 2023-10-01 | F79: PL | G79: 3328
E80: 2023-11-01 | F80: PL | G80: 3237
E81: 2023-12-01 | F81: PL | G81: 2263
E82: 2024-01-01 | F82: PL | G82: 3163
E83: 2024-02-01 | F83: PL | G83: 3037
E84: 2024-03-01 | F84: PL | G84: 2708

Sheet vELDashboard (hidden)
B1: =SUBTOTAL(9,vELDashboard[CNFs Sent]) -> 290777 | C1: =SUBTOTAL(9,vELDashboard[CNFs left at Stage 1]) -> 46121 | D1: =SUBTOTAL(9,vELDashboard[Stage 2 Exit]) -> 1450 | E1: =SUBTOTAL(9,vELDashboard[Exit process]) -> 23798 | F1: =SUBTOTAL(9,vELDashboard[Court Pack]) -> 1932 | G1: =SUBTOTAL(9,vELDashboard[Settled claims]) -> 12422 | H1: =SUBTOTAL(9,vELDashboard[General Damages]) -> 280516.9933
A2: Period | B2: CNFs Sent | C2: CNFs left at Stage 1 | D2: Stage 2 Exit | E2: Exit process | F2: Court Pack | G2: Settled claims | H2: General Damages | I2: General Damage Bands | K2: Period | L2: Rolling 12 CNF Sent | M2: Rolling 12 CNF Left at Stage 1 | N2: Rolling 12 Stage 2 Exit | O2: Rolling 12 Exit Process | P2: Rolling 12 Court Pack | Q2: Rolling 12 Settled Claims | S2: Period | T2: CNFs Sent | U2: CNFs left at Stage 1 | V2: Stage 2 Exit | W2: Exit process | X2: Court Pack | Y2: Settled claims | Z2: General Damages
A3: 2013-10-01 | B3: 58 | C3: 0 | D3: 0 | E3: 0 | F3: 0 | G3: 0 | K3: =vELDashboard[[#This Row],[Period]] -> 2013-10-01 | S3: =tblPrevious12V2[[#This Row],[Period]] -> 2013-10-01 | T3: 3421 | U3: 1776 | V3: 42 | W3: 860 | X3: 97 | Y3: 635 | Z3: 4307.368488
A4: 2014-01-01 | B4: 63 | C4: 0 | D4: 0 | E4: 0 | F4: 0 | G4: 0 | K4: =vELDashboard[[#This Row],[Period]] -> 2014-01-01 | S4: =tblPrevious12V2[[#This Row],[Period]] -> 2014-01-01 | T4: 4027 | U4: 1499 | V4: 55 | W4: 945 | X4: 96 | Y4: 710 | Z4: 4367.018
A5: 2014-03-01 | B5: 57 | C5: 0 | D5: 0 | E5: 0 | F5: 0 | G5: 0 | K5: =vELDashboard[[#This Row],[Period]] -> 2014-03-01 | S5: =tblPrevious12V2[[#This Row],[Period]] -> 2014-03-01 | T5: 3796 | U5: 1554 | V5: 52 | W5: 895 | X5: 87 | Y5: 703 | Z5: 4512.42825
A6: 2014-07-01 | B6: 92 | C6: 0 | D6: 0 | E6: 0 | F6: 0 | G6: 0 | K6: =vELDashboard[[#This Row],[Period]] -> 2014-07-01 | S6: =tblPrevious12V2[[#This Row],[Period]] -> 2014-07-01 | T6: 2719 | U6: 1520 | V6: 59 | W6: 790 | X6: 74 | Y6: 542 | Z6: 4269.672158
A7: 2014-08-01 | B7: 101 | C7: 0 | D7: 0 | E7: 0 | F7: 0 | G7: 0 | K7: =vELDashboard[[#This Row],[Period]] -> 2014-08-01 | S7: =tblPrevious12V2[[#This Row],[Period]] -> 2014-08-01 | T7: 3673 | U7: 1611 | V7: 54 | W7: 948 | X7: 106 | Y7: 616 | Z7: 4432.807532
A8: 2014-10-01 | B8: 119 | C8: 0 | D8: 0 | E8: 0 | F8: 0 | G8: 0 | K8: =vELDashboard[[#This Row],[Period]] -> 2014-10-01 | S8: =tblPrevious12V2[[#This Row],[Period]] -> 2014-10-01 | T8: 3658 | U8: 1148 | V8: 41 | W8: 688 | X8: 75 | Y8: 616 | Z8: 4438.777012
A9: 2014-11-01 | B9: 91 | C9: 0 | D9: 0 | E9: 0 | F9: 0 | G9: 0 | K9: =vELDashboard[[#This Row],[Period]] -> 2014-11-01 | S9: =tblPrevious12V2[[#This Row],[Period]] -> 2014-11-01 | T9: 3424 | U9: 1662 | V9: 61 | W9: 866 | X9: 90 | Y9: 650 | Z9: 4519.353969
A10: 2014-12-01 | B10: 66 | C10: 0 | D10: 0 | E10: 0 | F10: 0 | G10: 0 | K10: =vELDashboard[[#This Row],[Period]] -> 2014-12-01 | S10: =tblPrevious12V2[[#This Row],[Period]] -> 2014-12-01 | T10: 2207 | U10: 1490 | V10: 50 | W10: 853 | X10: 83 | Y10: 563 | Z10: 4459.256944
A11: 2015-04-01 | B11: 82 | C11: 0 | D11: 0 | E11: 0 | F11: 0 | G11: 0 | K11: =vELDashboard[[#This Row],[Period]] -> 2015-04-01 | S11: =tblPrevious12V2[[#This Row],[Period]] -> 2015-04-01 | T11: 1650 | U11: 1065 | V11: 39 | W11: 549 | X11: 54 | Y11: 448 | Z11: 4698.719553
A12: 2015-05-01 | B12: 74 | C12: 0 | D12: 0 | E12: 0 | F12: 0 | G12: 1 | H12: 1200 | I12: ?0-?5k | K12: =vELDashboard[[#This Row],[Period]] -> 2015-05-01 | S12: =tblPrevious12V2[[#This Row],[Period]] -> 2015-05-01 | T12: 1976 | U12: 846 | V12: 36 | W12: 524 | X12: 72 | Y12: 468 | Z12: 4892.872094
A13: 2015-07-01 | B13: 88 | C13: 0 | D13: 0 | E13: 0 | F13: 0 | G13: 1 | H13: 3220.62 | I13: ?0-?5k | K13: =vELDashboard[[#This Row],[Period]] -> 2015-07-01 | S13: =tblPrevious12V2[[#This Row],[Period]] -> 2015-07-01 | T13: 2293 | U13: 819 | V13: 41 | W13: 535 | X13: 57 | Y13: 374 | Z13: 4706.51901
A14: 2015-08-01 | B14: 80 | C14: 0 | D14: 0 | E14: 0 | F14: 0 | G14: 0 | K14: =vELDashboard[[#This Row],[Period]] -> 2015-08-01 | L14: =SUM(B3:B14) -> 971 | M14: 0 | N14: 0 | O14: 0 | P14: 0 | Q14: 2 | S14: =tblPrevious12V2[[#This Row],[Period]] -> 2015-08-01 | T14: 1846 | U14: 798 | V14: 30 | W14: 427 | X14: 44 | Y14: 254 | Z14: 4394.581338
A15: 2015-12-01 | B15: 55 | C15: 0 | D15: 0 | E15: 0 | F15: 0 | G15: 0 | K15: =vELDashboard[[#This Row],[Period]] -> 2015-12-01 | L15: =SUM(B4:B15) -> 968 | M15: =SUM(C4:C15) -> 0 | N15: =SUM(D4:D15) -> 0 | O15: =SUM(E4:E15) -> 0 | P15: =SUM(F4:F15) -> 0 | Q15: =SUM(G4:G15) -> 2 | S15: =tblPrevious12V2[[#This Row],[Period]] -> 2015-12-01 | T15: 2625 | U15: 982 | V15: 33 | W15: 536 | X15: 63 | Y15: 401 | Z15: 4991.541995
A16: 2016-01-01 | B16: 87 | C16: 0 | D16: 0 | E16: 0 | F16: 0 | G16: 0 | K16: =vELDashboard[[#This Row],[Period]] -> 2016-01-01 | L16: 992 | M16: =SUM(C5:C16) -> 0 | N16: 0 | O16: 0 | P16: 0 | Q16: 2 | S16: =tblPrevious12V2[[#This Row],[Period]] -> 2016-01-01 | T16: 2670 | U16: 1134 | V16: 26 | W16: 659 | X16: 40 | Y16: 417 | Z16: 4906.445203
A17: 2016-02-01 | B17: 84 | C17: 0 | D17: 0 | E17: 0 | F17: 0 | G17: 1 | H17: 2584.94 | I17: ?0-?5k | K17: =vELDashboard[[#This Row],[Period]] -> 2016-02-01 | L17: =SUM(B6:B17) -> 1019 | M17: =SUM(C6:C17) -> 0 | N17: 0 | O17: 0 | P17: 0 | Q17: 3 | S17: =tblPrevious12V2[[#This Row],[Period]] -> 2016-02-01 | T17: 2230 | U17: 1112 | V17: 28 | W17: 638 | X17: 44 | Y17: 406 | Z17: 4773.720418
A18: 2016-03-01 | B18: 73 | C18: 0 | D18: 0 | E18: 0 | F18: 0 | G18: 0 | K18: =vELDashboard[[#This Row],[Period]] -> 2016-03-01 | L18: 1000 | M18: =SUM(C7:C18) -> 0 | N18: 0 | O18: 0 | P18: 0 | Q18: 3 | S18: =tblPrevious12V2[[#This Row],[Period]] -> 2016-03-01 | T18: 1977 | U18: 980 | V18: 37 | W18: 531 | X18: 45 | Y18: 364 | Z18: 4694.490274
A19: 2016-04-01 | B19: 90 | C19: 0 | D19: 0 | E19: 0 | F19: 0 | G19: 0 | K19: =vELDashboard[[#This Row],[Period]] -> 2016-04-01 | L19: 989 | M19: =SUM(C8:C19) -> 0 | N19: 0 | O19: 0 | P19: 0 | Q19: 3 | S19: =tblPrevious12V2[[#This Row],[Period]] -> 2016-04-01 | T19: 2223 | U19: 992 | V19: 26 | W19: 584 | X19: 44 | Y19: 383 | Z19: 4551.40919
A20: 2016-05-01 | B20: 84 | C20: 0 | D20: 0 | E20: 0 | F20: 0 | G20: 0 | K20: =vELDashboard[[#This Row],[Period]] -> 2016-05-01 | L20: 954 | M20: =SUM(C9:C20) -> 0 | N20: 0 | O20: 0 | P20: 0 | Q20: 3 | S20: =tblPrevious12V2[[#This Row],[Period]] -> 2016-05-01 | T20: 1502 | U20: 614 | V20: 23 | W20: 380 | X20: 25 | Y20: 343 | Z20: 4719.332332
A21: 2016-06-01 | B21: 89 | C21: 0 | D21: 0 | E21: 0 | F21: 0 | G21: 0 | K21: =vELDashboard[[#This Row],[Period]] -> 2016-06-01 | L21: 952 | M21: =SUM(C10:C21) -> 0 | N21: 0 | O21: 0 | P21: 0 | Q21: 3 | S21: =tblPrevious12V2[[#This Row],[Period]] -> 2016-06-01 | T21: 2276 | U21: 1164 | V21: 37 | W21: 637 | X21: 63 | Y21: 451 | Z21: 4852.832106
A22: 2016-07-01 | B22: 84 | C22: 0 | D22: 0 | E22: 0 | F22: 0 | G22: 0 | K22: =vELDashboard[[#This Row],[Period]] -> 2016-07-01 | L22: 970 | M22: =SUM(C11:C22) -> 0 | N22: 0 | O22: 0 | P22: 0 | Q22: 3 | S22: =tblPrevious12V2[[#This Row],[Period]] -> 2016-07-01 | T22: 2315 | U22: 993 | V22: 45 | W22: 597 | X22: 57 | Y22: 414 | Z22: 4846.595869
A23: 2016-09-01 | B23: 124 | C23: 0 | D23: 0 | E23: 0 | F23: 0 | G23: 0 | K23: =vELDashboard[[#This Row],[Period]] -> 2016-09-01 | L23: 1012 | M23: =SUM(C12:C23) -> 0 | N23: 0 | O23: 0 | P23: 0 | Q23: 3 | S23: =tblPrevious12V2[[#This Row],[Period]] -> 2016-09-01 | T23: 2199 | U23: 928 | V23: 26 | W23: 577 | X23: 40 | Y23: 347 | Z23: 4774.829394
A24: 2016-10-01 | B24: 205 | C24: 0 | D24: 0 | E24: 0 | F24: 0 | G24: 0 | K24: =vELDashboard[[#This Row],[Period]] -> 2016-10-01 | L24: 1143 | M24: =SUM(C13:C24) -> 0 | N24: 0 | O24: 0 | P24: 0 | Q24: 2 | S24: =tblPrevious12V2[[#This Row],[Period]] -> 2016-10-01 | T24: 2288 | U24: 1016 | V24: 35 | W24: 561 | X24: 46 | Y24: 384 | Z24: 4795.169218
A25: 2016-11-01 | B25: 446 | C25: 0 | D25: 0 | E25: 0 | F25: 0 | G25: 0 | K25: =vELDashboard[[#This Row],[Period]] -> 2016-11-01 | L25: 1501 | M25: =SUM(C14:C25) -> 0 | N25: 0 | O25: 0 | P25: 0 | Q25: 1 | S25: =tblPrevious12V2[[#This Row],[Period]] -> 2016-11-01 | T25: 2442 | U25: 992 | V25: 37 | W25: 567 | X25: 54 | Y25: 378 | Z25: 4960.905582
A26: 2016-12-01 | B26: 545 | C26: 0 | D26: 0 | E26: 0 | F26: 0 | G26: 0 | K26: =vELDashboard[[#This Row],[Period]] -> 2016-12-01 | L26: 1966 | M26: =SUM(C15:C26) -> 0 | N26: 0 | O26: 0 | P26: 0 | Q26: 1 | S26: =tblPrevious12V2[[#This Row],[Period]] -> 2016-12-01 | T26: 2419 | U26: 994 | V26: 31 | W26: 595 | X26: 40 | Y26: 359 | Z26: 4906.896155
A27: 2017-01-01 | B27: 733 | C27: 0 | D27: 0 | E27: 0 | F27: 0 | G27: 0 | K27: =vELDashboard[[#This Row],[Period]] -> 2017-01-01 | L27: 2644 | M27: =SUM(C16:C27) -> 0 | N27: 0 | O27: 0 | P27: 0 | Q27: 1 | S27: =tblPrevious12V2[[#This Row],[Period]] -> 2017-01-01 | T27: 2617 | U27: 1055 | V27: 35 | W27: 629 | X27: 39 | Y27: 361 | Z27: 4801.203628
A28: 2017-02-01 | B28: 731 | C28: 0 | D28: 0 | E28: 0 | F28: 0 | G28: 0 | K28: =vELDashboard[[#This Row],[Period]] -> 2017-02-01 | L28: 3288 | M28: =SUM(C17:C28) -> 0 | N28: 0 | O28: 0 | P28: 0 | Q28: 1 | S28: =tblPrevious12V2[[#This Row],[Period]] -> 2017-02-01 | T28: 2456 | U28: 1019 | V28: 36 | W28: 640 | X28: 38 | Y28: 371 | Z28: 4718.253288
A29: 2017-03-01 | B29: 732 | C29: 0 | D29: 0 | E29: 0 | F29: 0 | G29: 0 | K29: =vELDashboard[[#This Row],[Period]] -> 2017-03-01 | L29: 3936 | M29: =SUM(C18:C29) -> 0 | N29: 0 | O29: 0 | P29: 0 | Q29: 0 | S29: =tblPrevious12V2[[#This Row],[Period]] -> 2017-03-01 | T29: 2609 | U29: 1126 | V29: 43 | W29: 713 | X29: 45 | Y29: 426 | Z29: 5028.160563
A30: 2017-04-01 | B30: 557 | C30: 0 | D30: 0 | E30: 0 | F30: 0 | G30: 0 | K30: =vELDashboard[[#This Row],[Period]] -> 2017-04-01 | L30: 4420 | M30: =SUM(C19:C30) -> 0 | N30: 0 | O30: 0 | P30: 0 | Q30: 0 | S30: =tblPrevious12V2[[#This Row],[Period]] -> 2017-04-01 | T30: 1952 | U30: 1039 | V30: 38 | W30: 577 | X30: 35 | Y30: 351 | Z30: 5112.042962
A31: 2017-05-01 | B31: 690 | C31: 0 | D31: 0 | E31: 0 | F31: 0 | G31: 0 | K31: =vELDashboard[[#This Row],[Period]] -> 2017-05-01 | L31: 5020 | M31: =SUM(C20:C31) -> 0 | N31: 0 | O31: 0 | P31: 0 | Q31: 0 | S31: =tblPrevious12V2[[#This Row],[Period]] -> 2017-05-01 | T31: 2383 | U31: 1000 | V31: 24 | W31: 539 | X31: 39 | Y31: 365 | Z31: 4867.454767
A32: 2017-06-01 | B32: 660 | C32: 0 | D32: 0 | E32: 0 | F32: 0 | G32: 0 | K32: =vELDashboard[[#This Row],[Period]] -> 2017-06-01 | L32: 5596 | M32: =SUM(C21:C32) -> 0 | N32: 0 | O32: 0 | P32: 0 | Q32: 0 | S32: =tblPrevious12V2[[#This Row],[Period]] -> 2017-06-01 | T32: 2396 | U32: 801 | V32: 32 | W32: 521 | X32: 43 | Y32: 346 | Z32: 4871.252312
A33: 2017-07-01 | B33: 644 | C33: 0 | D33: 0 | E33: 0 | F33: 0 | G33: 0 | K33: =vELDashboard[[#This Row],[Period]] -> 2017-07-01 | L33: 6151 | M33: =SUM(C22:C33) -> 0 | N33: 0 | O33: 0 | P33: 0 | Q33: 0 | S33: =tblPrevious12V2[[#This Row],[Period]] -> 2017-07-01 | T33: 2699 | U33: 1208 | V33: 45 | W33: 717 | X33: 60 | Y33: 412 | Z33: 4734.900485
A34: 2017-08-01 | B34: 699 | C34: 0 | D34: 0 | E34: 0 | F34: 0 | G34: 0 | K34: =vELDashboard[[#This Row],[Period]] -> 2017-08-01 | L34: 6766 | M34: =SUM(C23:C34) -> 0 | N34: 0 | O34: 0 | P34: 0 | Q34: 0 | S34: =tblPrevious12V2[[#This Row],[Period]] -> 2017-08-01 | T34: 2101 | U34: 948 | V34: 42 | W34: 561 | X34: 47 | Y34: 336 | Z34: 4962.193154
A35: 2017-09-01 | B35: 705 | C35: 0 | D35: 0 | E35: 0 | F35: 0 | G35: 0 | K35: =vELDashboard[[#This Row],[Period]] -> 2017-09-01 | L35: 7347 | M35: =SUM(C24:C35) -> 0 | N35: 0 | O35: 0 | P35: 0 | Q35: 0 | S35: =tblPrevious12V2[[#This Row],[Period]] -> 2017-09-01 | T35: 2418 | U35: 1044 | V35: 32 | W35: 604 | X35: 51 | Y35: 406 | Z35: 5118.08261
A36: 2017-10-01 | B36: 709 | C36: 0 | D36: 0 | E36: 0 | F36: 0 | G36: 0 | K36: =vELDashboard[[#This Row],[Period]] -> 2017-10-01 | L36: 7851 | M36: =SUM(C25:C36) -> 0 | N36: 0 | O36: 0 | P36: 0 | Q36: 0 | S36: =tblPrevious12V2[[#This Row],[Period]] -> 2017-10-01 | T36: 2337 | U36: 1012 | V36: 53 | W36: 508 | X36: 40 | Y36: 383 | Z36: 5258.250574
A37: 2017-11-01 | B37: 717 | C37: 0 | D37: 0 | E37: 0 | F37: 0 | G37: 0 | K37: =vELDashboard[[#This Row],[Period]] -> 2017-11-01 | L37: 8122 | M37: =SUM(C26:C37) -> 0 | N37: 0 | O37: 0 | P37: 0 | Q37: 0 | S37: =tblPrevious12V2[[#This Row],[Period]] -> 2017-11-01 | T37: 2257 | U37: 1080 | V37: 37 | W37: 543 | X37: 42 | Y37: 334 | Z37: 4974.681137
A38: 2017-12-01 | B38: 586 | C38: 0 | D38: 0 | E38: 0 | F38: 0 | G38: 0 | K38: =vELDashboard[[#This Row],[Period]] -> 2017-12-01 | L38: 8163 | M38: =SUM(C27:C38) -> 0 | N38: 0 | O38: 0 | P38: 0 | Q38: 0 | S38: =tblPrevious12V2[[#This Row],[Period]] -> 2017-12-01 | T38: 2344 | U38: 1096 | V38: 37 | W38: 572 | X38: 54 | Y38: 366 | Z38: 5004.888032
A39: 2018-01-01 | B39: 822 | C39: 0 | D39: 0 | E39: 0 | F39: 0 | G39: 0 | K39: =vELDashboard[[#This Row],[Period]] -> 2018-01-01 | L39: 8252 | M39: =SUM(C28:C39) -> 0 | N39: 0 | O39: 0 | P39: 0 | Q39: 0 | S39: =tblPrevious12V2[[#This Row],[Period]] -> 2018-01-01 | T39: 2374 | U39: 1100 | V39: 36 | W39: 599 | X39: 44 | Y39: 360 | Z39: 4797.174527
A40: 2018-02-01 | B40: 746 | C40: 0 | D40: 0 | E40: 0 | F40: 0 | G40: 0 | K40: =vELDashboard[[#This Row],[Period]] -> 2018-02-01 | L40: 8267 | M40: =SUM(C29:C40) -> 0 | N40: 0 | O40: 0 | P40: 0 | Q40: 0 | S40: =tblPrevious12V2[[#This Row],[Period]] -> 2018-02-01 | T40: 2351 | U40: 1030 | V40: 44 | W40: 564 | X40: 42 | Y40: 352 | Z40: 5156.298323
A41: 2018-03-01 | B41: 716 | C41: 0 | D41: 0 | E41: 0 | F41: 0 | G41: 0 | K41: =vELDashboard[[#This Row],[Period]] -> 2018-03-01 | L41: 8251 | M41: =SUM(C30:C41) -> 0 | N41: 0 | O41: 0 | P41: 0 | Q41: 0 | S41: =tblPrevious12V2[[#This Row],[Period]] -> 2018-03-01 | T41: 2460 | U41: 1081 | V41: 43 | W41: 625 | X41: 44 | Y41: 339 | Z41: 5018.787227
A42: 2018-04-01 | B42: 752 | C42: 0 | D42: 0 | E42: 0 | F42: 0 | G42: 0 | K42: =vELDashboard[[#This Row],[Period]] -> 2018-04-01 | L42: 8446 | M42: =SUM(C31:C42) -> 0 | N42: 0 | O42: 0 | P42: 0 | Q42: 0 | S42: 2022-12-01 | T42: 1406 | U42: 978 | V42: 39 | W42: 482 | X42: 34 | Y42: 265 | Z42: 6165.956
A43: 2018-05-01 | B43: 724 | C43: 0 | D43: 0 | E43: 0 | F43: 0 | G43: 1 | H43: 2855.6 | I43: ?0-?5k | K43: =vELDashboard[[#This Row],[Period]] -> 2018-05-01 | L43: 8480 | M43: =SUM(C32:C43) -> 0 | N43: 0 | O43: 0 | P43: 0 | Q43: 1 | S43: 2023-01-01 | T43: 2407 | U43: 922 | V43: 29 | W43: 503 | X43: 54 | Y43: 307 | Z43: 5831.012377
A44: 2018-06-01 | B44: 739 | C44: 0 | D44: 0 | E44: 0 | F44: 0 | G44: 1 | H44: 2796 | I44: ?0-?5k | K44: =vELDashboard[[#This Row],[Period]] -> 2018-06-01 | L44: 8559 | M44: =SUM(C33:C44) -> 0 | N44: 0 | O44: 0 | P44: 0 | Q44: 2 | S44: 2023-02-01 | T44: 2201 | U44: 788 | V44: 38 | W44: 392 | X44: 32 | Y44: 324 | Z44: 5625.017901
A45: 2018-07-01 | B45: 744 | C45: 0 | D45: 0 | E45: 0 | F45: 0 | G45: 0 | K45: =vELDashboard[[#This Row],[Period]] -> 2018-07-01 | L45: 8659 | M45: =SUM(C34:C45) -> 0 | N45: 0 | O45: 0 | P45: 0 | Q45: 2 | S45: 2023-03-01 | T45: 2297 | U45: 1028 | V45: 41 | W45: 534 | X45: 30 | Y45: 335 | Z45: 6065.69197
A46: 2018-08-01 | B46: 751 | C46: 0 | D46: 0 | E46: 0 | F46: 0 | G46: 0 | K46: =vELDashboard[[#This Row],[Period]] -> 2018-08-01 | L46: 8711 | M46: =SUM(C35:C46) -> 0 | N46: 0 | O46: 0 | P46: 0 | Q46: 2 | S46: 2023-04-01 | T46: 2027 | U46: 850 | V46: 28 | W46: 381 | X46: 39 | Y46: 311 | Z46: 6064.348102
A47: 2018-09-01 | B47: 709 | C47: 0 | D47: 0 | E47: 0 | F47: 0 | G47: 0 | K47: =vELDashboard[[#This Row],[Period]] -> 2018-09-01 | L47: 8715 | M47: =SUM(C36:C47) -> 0 | N47: 0 | O47: 0 | P47: 0 | Q47: 2 | S47: 2023-05-01 | T47: 2079 | U47: 1012 | V47: 35 | W47: 481 | X47: 47 | Y47: 347 | Z47: 5604.697723
A48: 2018-10-01 | B48: 901 | C48: 0 | D48: 0 | E48: 0 | F48: 0 | G48: 0 | K48: =vELDashboard[[#This Row],[Period]] -> 2018-10-01 | L48: 8907 | M48: =SUM(C37:C48) -> 0 | N48: 0 | O48: 0 | P48: 0 | Q48: 2 | S48: 2023-06-01 | T48: 2342 | U48: 1102 | V48: 48 | W48: 444 | X48: 50 | Y48: 381 | Z48: 5824.895249
A49: 2018-11-01 | B49: 819 | C49: 0 | D49: 0 | E49: 0 | F49: 0 | G49: 0 | K49: =vELDashboard[[#This Row],[Period]] -> 2018-11-01 | L49: 9009 | M49: =SUM(C38:C49) -> 0 | N49: 0 | O49: 0 | P49: 0 | Q49: 2 | S49: 2023-07-01 | T49: 2325 | U49: 1021 | V49: 37 | W49: 518 | X49: 55 | Y49: 360 | Z49: 5981.562277
A50: 2018-12-01 | B50: 637 | C50: 0 | D50: 0 | E50: 0 | F50: 0 | G50: 0 | K50: =vELDashboard[[#This Row],[Period]] -> 2018-12-01 | L50: 9060 | M50: =SUM(C39:C50) -> 0 | N50: 0 | O50: 0 | P50: 0 | Q50: 2 | S50: 2023-08-01 | T50: 2288 | U50: 1183 | V50: 27 | W50: 556 | X50: 52 | Y50: 325 | Z50: 6137.105107
A51: 2019-01-01 | B51: 925 | C51: 0 | D51: 0 | E51: 0 | F51: 0 | G51: 0 | K51: =vELDashboard[[#This Row],[Period]] -> 2019-01-01 | L51: 9163 | M51: =SUM(C40:C51) -> 0 | N51: 0 | O51: 0 | P51: 0 | Q51: 2 | S51: 2023-09-01 | T51: 2207 | U51: 1039 | V51: 26 | W51: 543 | X51: 30 | Y51: 233 | Z51: 6253.145922
A52: 2019-02-01 | B52: 891 | C52: 0 | D52: 0 | E52: 0 | F52: 0 | G52: 0 | K52: =vELDashboard[[#This Row],[Period]] -> 2019-02-01 | L52: 9308 | M52: =SUM(C41:C52) -> 0 | N52: 0 | O52: 0 | P52: 0 | Q52: 2 | S52: 2023-10-01 | T52: 2367 | U52: 1070 | V52: 50 | W52: 472 | X52: 42 | Y52: 340 | Z52: 5960.64697
A53: 2019-03-01 | B53: 986 | C53: 0 | D53: 0 | E53: 0 | F53: 0 | G53: 0 | K53: =vELDashboard[[#This Row],[Period]] -> 2019-03-01 | L53: 9578 | M53: =SUM(C42:C53) -> 0 | N53: 0 | O53: 0 | P53: 0 | Q53: 2 | S53: 2023-11-01 | T53: 2413 | U53: 1142 | V53: 35 | W53: 602 | X53: 22 | Y53: 373 | Z53: 6045.701474
A54: 2019-04-01 | B54: 985 | C54: 0 | D54: 0 | E54: 0 | F54: 0 | G54: 0 | K54: =vELDashboard[[#This Row],[Period]] -> 2019-04-01 | L54: 9811 | M54: =SUM(C43:C54) -> 0 | N54: 0 | O54: 0 | P54: 0 | Q54: 2 | S54: 2023-12-01 | T54: 1506 | U54: 945 | V54: 32 | W54: 380 | X54: 29 | Y54: 303 | Z54: 6327.345643
A55: 2019-05-01 | B55: 997 | C55: 0 | D55: 0 | E55: 0 | F55: 0 | G55: 0 | K55: =vELDashboard[[#This Row],[Period]] -> 2019-05-01 | L55: 10084 | M55: =SUM(C44:C55) -> 0 | N55: 0 | O55: 0 | P55: 0 | Q55: 1 | S55: 2024-01-01 | T55: 5482 | U55: 1012 | V55: 26 | W55: 454 | X55: 38 | Y55: 334 | Z55: 5473.618263
A56: 2019-06-01 | B56: 924 | C56: 0 | D56: 0 | E56: 0 | F56: 0 | G56: 0 | K56: =vELDashboard[[#This Row],[Period]] -> 2019-06-01 | L56: 10269 | M56: =SUM(C45:C56) -> 0 | N56: 0 | O56: 0 | P56: 0 | Q56: 0 | S56: 2024-02-01 | T56: 5169 | U56: 876 | V56: 26 | W56: 376 | X56: 29 | Y56: 357 | Z56: 6011.642717
A57: 2019-07-01 | B57: 1111 | C57: 0 | D57: 0 | E57: 1 | F57: 0 | G57: 0 | K57: =vELDashboard[[#This Row],[Period]] -> 2019-07-01 | L57: 10636 | M57: =SUM(C46:C57) -> 0 | N57: 0 | O57: 1 | P57: 0 | Q57: 0 | S57: 2024-03-01 | T57: 5440 | U57: 1011 | V57: 33 | W57: 408 | X57: 27 | Y57: 371 | Z57: 2797.388059
A58: 2019-08-01 | B58: 2102 | C58: 0 | D58: 0 | E58: 0 | F58: 0 | G58: 0 | K58: =vELDashboard[[#This Row],[Period]] -> 2019-08-01 | L58: 11987 | M58: =SUM(C47:C58) -> 0 | N58: 0 | O58: 1 | P58: 0 | Q58: 0
A59: 2019-09-01 | B59: 2933 | C59: 5 | D59: 0 | E59: 13 | F59: 2 | G59: 3 | H59: 3190.543333 | I59: ?0-?5k | K59: =vELDashboard[[#This Row],[Period]] -> 2019-09-01 | L59: 14211 | M59: =SUM(C48:C59) -> 5 | N59: 0 | O59: 14 | P59: 2 | Q59: 3
A60: 2019-10-01 | B60: 3611 | C60: 538 | D60: 19 | E60: 292 | F60: 40 | G60: 57 | H60: 2799.707017 | I60: ?0-?5k | K60: =vELDashboard[[#This Row],[Period]] -> 2019-10-01 | L60: 16921 | M60: =SUM(C49:C60) -> 543 | N60: 19 | O60: 306 | P60: 42 | Q60: 60
A61: 2019-11-01 | B61: 3427 | C61: 619 | D61: 15 | E61: 332 | F61: 32 | G61: 73 | H61: 4178.926575 | I61: ?0-?5k | K61: =vELDashboard[[#This Row],[Period]] -> 2019-11-01 | L61: 19529 | M61: =SUM(C50:C61) -> 1162 | N61: 34 | O61: 638 | P61: 74 | Q61: 133
A62: 2019-12-01 | B62: 2464 | C62: 551 | D62: 21 | E62: 298 | F62: 32 | G62: 87 | H62: 3826.723793 | I62: ?0-?5k | K62: =vELDashboard[[#This Row],[Period]] -> 2019-12-01 | L62: 21356 | M62: =SUM(C51:C62) -> 1713 | N62: 55 | O62: 936 | P62: 106 | Q62: 220
A63: 2020-01-01 | B63: 3495 | C63: 572 | D63: 15 | E63: 388 | F63: 44 | G63: 93 | H63: 3420.732903 | I63: ?0-?5k | K63: =vELDashboard[[#This Row],[Period]] -> 2020-01-01 | L63: 23926 | M63: =SUM(C52:C63) -> 2285 | N63: 70 | O63: 1324 | P63: 150 | Q63: 313
A64: 2020-02-01 | B64: 3477 | C64: 434 | D64: 18 | E64: 253 | F64: 30 | G64: 68 | H64: 3148.684852 | I64: ?0-?5k | K64: =vELDashboard[[#This Row],[Period]] -> 2020-02-01 | L64: 26512 | M64: =SUM(C53:C64) -> 2719 | N64: 88 | O64: 1577 | P64: 180 | Q64: 381
A65: 2020-03-01 | B65: 3232 | C65: 682 | D65: 21 | E65: 375 | F65: 42 | G65: 84 | H65: 3763.07488 | I65: ?0-?5k | K65: =vELDashboard[[#This Row],[Period]] -> 2020-03-01 | L65: 28758 | M65: =SUM(C54:C65) -> 3401 | N65: 109 | O65: 1952 | P65: 222 | Q65: 465
A66: 2020-04-01 | B66: 2056 | C66: 571 | D66: 17 | E66: 343 | F66: 34 | G66: 86 | H66: 3950.660581 | I66: ?0-?5k | K66: =vELDashboard[[#This Row],[Period]] -> 2020-04-01 | L66: 29829 | M66: =SUM(C55:C66) -> 3972 | N66: 126 | O66: 2295 | P66: 256 | Q66: 551
A67: 2020-05-01 | B67: 1701 | C67: 410 | D67: 21 | E67: 218 | F67: 25 | G67: 81 | H67: 3589.629753 | I67: ?0-?5k | K67: =vELDashboard[[#This Row],[Period]] -> 2020-05-01 | L67: 30533 | M67: =SUM(C56:C67) -> 4382 | N67: 147 | O67: 2513 | P67: 281 | Q67: 632
A68: 2020-06-01 | B68: 2110 | C68: 309 | D68: 14 | E68: 228 | F68: 41 | G68: 80 | H68: 4804.924625 | I68: ?0-?5k | K68: =vELDashboard[[#This Row],[Period]] -> 2020-06-01 | L68: 31719 | M68: =SUM(C57:C68) -> 4691 | N68: 161 | O68: 2741 | P68: 322 | Q68: 712
A69: 2020-07-01 | B69: 2587 | C69: 355 | D69: 11 | E69: 199 | F69: 24 | G69: 59 | H69: 3098.291864 | I69: ?0-?5k | K69: =vELDashboard[[#This Row],[Period]] -> 2020-07-01 | L69: 33195 | M69: =SUM(C58:C69) -> 5046 | N69: 172 | O69: 2939 | P69: 346 | Q69: 771
A70: 2020-08-01 | B70: 2287 | C70: 324 | D70: 11 | E70: 201 | F70: 25 | G70: 60 | H70: 3350.323333 | I70: ?0-?5k | K70: =vELDashboard[[#This Row],[Period]] -> 2020-08-01 | L70: 33380 | M70: =SUM(C59:C70) -> 5370 | N70: 183 | O70: 3140 | P70: 371 | Q70: 831
A71: 2020-09-01 | B71: 2937 | C71: 416 | D71: 11 | E71: 209 | F71: 25 | G71: 77 | H71: 4167.327662 | I71: ?0-?5k | K71: =vELDashboard[[#This Row],[Period]] -> 2020-09-01 | L71: 33384 | M71: =SUM(C60:C71) -> 5781 | N71: 194 | O71: 3336 | P71: 394 | Q71: 905
A72: 2020-10-01 | B72: 2993 | C72: 434 | D72: 11 | E72: 268 | F72: 20 | G72: 82 | H72: 4509.791829 | I72: ?0-?5k | K72: =vELDashboard[[#This Row],[Period]] -> 2020-10-01 | L72: 32766 | M72: =SUM(C61:C72) -> 5677 | N72: 186 | O72: 3312 | P72: 374 | Q72: 930
A73: 2020-11-01 | B73: 2775 | C73: 445 | D73: 12 | E73: 280 | F73: 28 | G73: 81 | H73: 3671.617283 | I73: ?0-?5k | K73: =vELDashboard[[#This Row],[Period]] -> 2020-11-01 | L73: 32114 | M73: =SUM(C62:C73) -> 5503 | N73: 183 | O73: 3260 | P73: 370 | Q73: 938
A74: 2020-12-01 | B74: 2244 | C74: 410 | D74: 15 | E74: 237 | F74: 28 | G74: 97 | H74: 5395.371855 | I74: ?5-?10k | K74: =vELDashboard[[#This Row],[Period]] -> 2020-12-01 | L74: 31894 | M74: =SUM(C63:C74) -> 5362 | N74: 177 | O74: 3199 | P74: 366 | Q74: 948
A75: 2021-01-01 | B75: 2728 | C75: 421 | D75: 8 | E75: 240 | F75: 19 | G75: 73 | H75: 3724.561643 | I75: ?0-?5k | K75: =vELDashboard[[#This Row],[Period]] -> 2021-01-01 | L75: 31127 | M75: =SUM(C64:C75) -> 5211 | N75: 170 | O75: 3051 | P75: 341 | Q75: 928
A76: 2021-02-01 | B76: 2726 | C76: 321 | D76: 14 | E76: 189 | F76: 17 | G76: 83 | H76: 4560.598072 | I76: ?0-?5k | K76: =vELDashboard[[#This Row],[Period]] -> 2021-02-01 | L76: 30376 | M76: =SUM(C65:C76) -> 5098 | N76: 166 | O76: 2987 | P76: 328 | Q76: 943
A77: 2021-03-01 | B77: 3257 | C77: 509 | D77: 9 | E77: 279 | F77: 26 | G77: 108 | H77: 4420.761851 | I77: ?0-?5k | K77: =vELDashboard[[#This Row],[Period]] -> 2021-03-01 | L77: 30401 | M77: =SUM(C66:C77) -> 4925 | N77: 154 | O77: 2891 | P77: 312 | Q77: 967
A78: 2021-04-01 | B78: 2912 | C78: 391 | D78: 19 | E78: 260 | F78: 29 | G78: 88 | H78: 4123.142954 | I78: ?0-?5k | K78: =vELDashboard[[#This Row],[Period]] -> 2021-04-01 | L78: 31257 | M78: =SUM(C67:C78) -> 4745 | N78: 156 | O78: 2808 | P78: 307 | Q78: 969
A79: 2021-05-01 | B79: 2812 | C79: 415 | D79: 13 | E79: 266 | F79: 23 | G79: 79 | H79: 4034.843164 | I79: ?0-?5k | K79: =vELDashboard[[#This Row],[Period]] -> 2021-05-01 | L79: 32368 | M79: =SUM(C68:C79) -> 4750 | N79: 148 | O79: 2856 | P79: 305 | Q79: 967
A80: 2021-06-01 | B80: 3184 | C80: 481 | D80: 14 | E80: 283 | F80: 19 | G80: 76 | H80: 5251.054736 | I80: ?5-?10k | K80: =vELDashboard[[#This Row],[Period]] -> 2021-06-01 | L80: 33442 | M80: =SUM(C69:C80) -> 4922 | N80: 148 | O80: 2911 | P80: 283 | Q80: 963
A81: 2021-07-01 | B81: 3664 | C81: 456 | D81: 13 | E81: 258 | F81: 18 | G81: 70 | H81: 4755.920285 | I81: ?0-?5k | K81: =vELDashboard[[#This Row],[Period]] -> 2021-07-01 | L81: =SUM(B70:B81) -> 34519 | M81: =SUM(C70:C81) -> 5023 | N81: 150 | O81: 2970 | P81: 277 | Q81: 974
A82: 2021-08-01 | B82: 5544 | C82: 439 | D82: 9 | E82: 275 | F82: 15 | G82: 91 | H82: 4561.312527 | I82: ?0-?5k | K82: =vELDashboard[[#This Row],[Period]] -> 2021-08-01 | L82: 37776 | M82: =SUM(C71:C82) -> 5138 | N82: 148 | O82: 3044 | P82: 267 | Q82: 1005
A83: 2021-09-01 | B83: 6626 | C83: 810 | D83: 19 | E83: 453 | F83: 35 | G83: 181 | H83: 5381.436795 | I83: ?5-?10k | K83: =vELDashboard[[#This Row],[Period]] -> 2021-09-01 | L83: 41465 | M83: =SUM(C72:C83) -> 5532 | N83: 156 | O83: 3288 | P83: 277 | Q83: 1109
A84: 2021-10-01 | B84: 6456 | C84: 1182 | D84: 36 | E84: 664 | F84: 38 | G84: 371 | H84: 5077.993396 | I84: ?5-?10k | K84: =vELDashboard[[#This Row],[Period]] -> 2021-10-01 | L84: 44928 | M84: =SUM(C73:C84) -> 6280 | N84: 181 | O84: 3684 | P84: 295 | Q84: 1398
A85: 2021-11-01 | B85: 6619 | C85: 1279 | D85: 43 | E85: 734 | F85: 45 | G85: 427 | H85: 5918.950421 | I85: ?5-?10k | K85: =vELDashboard[[#This Row],[Period]] -> 2021-11-01 | L85: 48772 | M85: =SUM(C74:C85) -> 7114 | N85: 212 | O85: 4138 | P85: 312 | Q85: 1744
A86: 2021-12-01 | B86: 4803 | C86: 1206 | D86: 38 | E86: 600 | F86: 35 | G86: 352 | H86: 5522.130596 | I86: ?5-?10k | K86: =vELDashboard[[#This Row],[Period]] -> 2021-12-01 | L86: 51331 | M86: =SUM(C75:C86) -> 7910 | N86: 235 | O86: 4501 | P86: 319 | Q86: 1999
A87: 2022-01-01 | B87: 6163 | C87: 1121 | D87: 24 | E87: 549 | F87: 39 | G87: 357 | H87: 5549.094705 | I87: ?5-?10k | K87: =vELDashboard[[#This Row],[Period]] -> 2022-01-01 | L87: 54766 | M87: =SUM(C76:C87) -> 8610 | N87: 251 | O87: 4810 | P87: 339 | Q87: 2283
A88: 2022-02-01 | B88: 5949 | C88: 899 | D88: 32 | E88: 527 | F88: 43 | G88: 340 | H88: 5456.399558 | I88: ?5-?10k | K88: =vELDashboard[[#This Row],[Period]] -> 2022-02-01 | L88: 57989 | M88: =SUM(C77:C88) -> 9188 | N88: 269 | O88: 5148 | P88: 365 | Q88: 2540
A89: 2022-03-01 | B89: 6755 | C89: 1265 | D89: 43 | E89: 684 | F89: 60 | G89: 351 | H89: 5280.352165 | I89: ?5-?10k | K89: =vELDashboard[[#This Row],[Period]] -> 2022-03-01 | L89: 61487 | M89: =SUM(C78:C89) -> 9944 | N89: 303 | O89: 5553 | P89: 399 | Q89: 2783
A90: 2022-04-01 | B90: 5347 | C90: 1104 | D90: 42 | E90: 577 | F90: 47 | G90: 340 | H90: 5746.578323 | I90: ?5-?10k | K90: =vELDashboard[[#This Row],[Period]] -> 2022-04-01 | L90: 63922 | M90: =SUM(C79:C90) -> 10657 | N90: 326 | O90: 5870 | P90: 417 | Q90: 3035
A91: 2022-05-01 | B91: 6229 | C91: 1200 | D91: 32 | E91: 632 | F91: 51 | G91: 406 | H91: 5619.642931 | I91: ?5-?10k | K91: =vELDashboard[[#This Row],[Period]] -> 2022-05-01 | L91: 67339 | M91: =SUM(C80:C91) -> 11442 | N91: 345 | O91: 6236 | P91: 445 | Q91: 3362
A92: 2022-06-01 | B92: 5931 | C92: 1172 | D92: 53 | E92: 540 | F92: 40 | G92: 382 | H92: 6031.941099 | I92: ?5-?10k | K92: =vELDashboard[[#This Row],[Period]] -> 2022-06-01 | L92: 70086 | M92: =SUM(C81:C92) -> 12133 | N92: 384 | O92: 6493 | P92: 466 | Q92: 3668
A93: 2022-07-01 | B93: 6030 | C93: 1243 | D93: 37 | E93: 557 | F93: 40 | G93: 325 | H93: 5537.770061 | I93: ?5-?10k | K93: =vELDashboard[[#This Row],[Period]] -> 2022-07-01 | L93: 72452 | M93: =SUM(C82:C93) -> 12920 | N93: 408 | O93: 6792 | P93: 488 | Q93: 3923
A94: 2022-08-01 | B94: 6602 | C94: 1244 | D94: 37 | E94: 592 | F94: 53 | G94: 353 | H94: 5499.164985 | I94: ?5-?10k | K94: =vELDashboard[[#This Row],[Period]] -> 2022-08-01 | L94: 73510 | M94: =SUM(C83:C94) -> 13725 | N94: 436 | O94: 7109 | P94: 526 | Q94: 4185
A95: 2022-09-01 | B95: 6305 | C95: 1231 | D95: 36 | E95: 602 | F95: 43 | G95: 339 | H95: 5601.320176 | I95: ?5-?10k | K95: =vELDashboard[[#This Row],[Period]] -> 2022-09-01 | L95: 73189 | M95: =SUM(C84:C95) -> 14146 | N95: 453 | O95: 7258 | P95: 534 | Q95: 4343
A96: 2022-10-01 | B96: 6288 | C96: 1172 | D96: 44 | E96: 601 | F96: 42 | G96: 358 | H96: 5656.512681 | I96: ?5-?10k | K96: =vELDashboard[[#This Row],[Period]] -> 2022-10-01 | L96: 73021 | M96: =SUM(C85:C96) -> 14136 | N96: 461 | O96: 7195 | P96: 538 | Q96: 4330
A97: 2022-11-01 | B97: 6449 | C97: 1220 | D97: 43 | E97: 644 | F97: 44 | G97: 333 | H97: 5619.41006 | I97: ?5-?10k | K97: =vELDashboard[[#This Row],[Period]] -> 2022-11-01 | L97: 72851 | M97: =SUM(C86:C97) -> 14077 | N97: 461 | O97: 7105 | P97: 537 | Q97: 4236
A98: 2022-12-01 | B98: 4312 | C98: 1126 | D98: 39 | E98: 544 | F98: 34 | G98: 265 | H98: 5709.331433 | I98: ?5-?10k | K98: =vELDashboard[[#This Row],[Period]] -> 2022-12-01 | L98: 72360 | M98: =SUM(C87:C98) -> 13997 | N98: 462 | O98: 7049 | P98: 536 | Q98: 4149
A99: 2023-01-01 | B99: 6416 | C99: 1050 | D99: 29 | E99: 557 | F99: 54 | G99: 306 | H99: 5628.155555 | I99: ?5-?10k | K99: =vELDashboard[[#This Row],[Period]] -> 2023-01-01 | L99: 72613 | M99: =SUM(C88:C99) -> 13926 | N99: 467 | O99: 7057 | P99: 551 | Q99: 4098
A100: 2023-02-01 | B100: 6173 | C100: 924 | D100: 38 | E100: 444 | F100: 32 | G100: 330 | H100: 5458.921727 | I100: ?5-?10k | K100: =vELDashboard[[#This Row],[Period]] -> 2023-02-01 | L100: 72837 | M100: =SUM(C89:C100) -> 13951 | N100: 473 | O100: 6974 | P100: 540 | Q100: 4088
A101: 2023-03-01 | B101: 6757 | C101: 1336 | D101: 43 | E101: 663 | F101: 37 | G101: 391 | H101: 5984.394168 | I101: ?5-?10k | K101: =vELDashboard[[#This Row],[Period]] -> 2023-03-01 | L101: 72839 | M101: =SUM(C90:C101) -> 14022 | N101: 473 | O101: 6953 | P101: 517 | Q101: 4128
A102: 2023-04-01 | B102: 5426 | C102: 976 | D102: 28 | E102: 430 | F102: 39 | G102: 305 | H102: 6045.194065 | I102: ?5-?10k | K102: =vELDashboard[[#This Row],[Period]] -> 2023-04-01 | L102: 72918 | M102: =SUM(C91:C102) -> 13894 | N102: 459 | O102: 6806 | P102: 509 | Q102: 4093
A103: 2023-05-01 | B103: 6000 | C103: 1178 | D103: 35 | E103: 543 | F103: 47 | G103: 342 | H103: 5434.386257 | I103: ?5-?10k | K103: =vELDashboard[[#This Row],[Period]] -> 2023-05-01 | L103: 72689 | M103: =SUM(C92:C103) -> 13872 | N103: 462 | O103: 6717 | P103: 505 | Q103: 4029
A104: 2023-06-01 | B104: 6651 | C104: 1245 | D104: 48 | E104: 529 | F104: 52 | G104: 372 | H104: 5958.593225 | I104: ?5-?10k | K104: =vELDashboard[[#This Row],[Period]] -> 2023-06-01 | L104: 73409 | M104: =SUM(C93:C104) -> 13945 | N104: 457 | O104: 6706 | P104: 517 | Q104: 4019
A105: 2023-07-01 | B105: 6514 | C105: 1161 | D105: 37 | E105: 589 | F105: 55 | G105: 355 | H105: 5851.862478 | I105: ?5-?10k | K105: =vELDashboard[[#This Row],[Period]] -> 2023-07-01 | L105: 73893 | M105: =SUM(C94:C105) -> 13863 | N105: 457 | O105: 6738 | P105: 532 | Q105: 4049
A106: 2023-08-01 | B106: 6851 | C106: 1340 | D106: 27 | E106: 632 | F106: 52 | G106: 324 | H106: 6023.678333 | I106: ?5-?10k | K106: =vELDashboard[[#This Row],[Period]] -> 2023-08-01 | L106: 74142 | M106: =SUM(C95:C106) -> 13959 | N106: 447 | O106: 6778 | P106: 531 | Q106: 4020
A107: 2023-09-01 | B107: 9034 | C107: 1151 | D107: 34 | E107: 625 | F107: 47 | G107: 294 | H107: 5718.603877 | I107: ?5-?10k | K107: =vELDashboard[[#This Row],[Period]] -> 2023-09-01 | L107: 76871 | M107: =SUM(C96:C107) -> 13879 | N107: 445 | O107: 6801 | P107: 535 | Q107: 3975
A108: 2023-10-01 | B108: 6241 | C108: 1193 | D108: 50 | E108: 546 | F108: 42 | G108: 338 | H108: 5677.757692 | I108: ?5-?10k | K108: =vELDashboard[[#This Row],[Period]] -> 2023-10-01 | L108: 76824 | M108: =SUM(C97:C108) -> 13900 | N108: 451 | O108: 6746 | P108: 535 | Q108: 3955
A109: 2023-11-01 | B109: 6231 | C109: 1288 | D109: 35 | E109: 675 | F109: 22 | G109: 369 | H109: 5839.191111 | I109: ?5-?10k | K109: =vELDashboard[[#This Row],[Period]] -> 2023-11-01 | L109: 76606 | M109: =SUM(C98:C109) -> 13968 | N109: 443 | O109: 6777 | P109: 513 | Q109: 3991
A110: 2023-12-01 | B110: 4093 | C110: 1117 | D110: 32 | E110: 474 | F110: 29 | G110: 287 | H110: 6303.947282 | I110: ?5-?10k | K110: =vELDashboard[[#This Row],[Period]] -> 2023-12-01 | L110: 76387 | M110: =SUM(C99:C110) -> 13959 | N110: 436 | O110: 6707 | P110: 508 | Q110: 4013
A111: 2024-01-01 | B111: 6111 | C111: 1151 | D111: 26 | E111: 544 | F111: 39 | G111: 345 | H111: 5352.929913 | I111: ?5-?10k | K111: =vELDashboard[[#This Row],[Period]] -> 2024-01-01 | L111: =SUM(B100:B111) -> 76082 | M111: =SUM(C100:C111) -> 14060 | N111: =SUM(D100:D111) -> 433 | O111: =SUM(E100:E111) -> 6694 | P111: =SUM(F100:F111) -> 493 | Q111: =SUM(G100:G111) -> 4052
A112: 2024-02-01 | B112: 5738 | C112: 1018 | D112: 26 | E112: 454 | F112: 31 | G112: 372 | H112: 4278.272795 | I112: ?0-?5k | K112: =vELDashboard[[#This Row],[Period]] -> 2024-02-01 | L112: =SUM(B101:B112) -> 75647 | M112: 14154 | N112: 421 | O112: 6704 | P112: =SUM(F101:F112) -> 492 | Q112: =SUM(G101:G112) -> 4094
A113: 2024-03-01 | B113: 5440 | C113: 1011 | D113: 33 | E113: 408 | F113: 27 | G113: 371 | H113: 2797.388059 | I113: ?0-?5k | K113: =vELDashboard[[#This Row],[Period]] -> 2024-03-01 | L113: =SUM(B102:B113) -> 74330 | M113: =SUM(C102:C113) -> 13829 | N113: =SUM(D102:D113) -> 411 | O113: =SUM(E102:E113) -> 6449 | P113: =SUM(F102:F113) -> 482 | Q113: =SUM(G102:G113) -> 4074

Sheet Year Calculations (hidden)
A1: Period | B1: CNFs sent | C1: CNFs left at stage 1 | D1: Stage 2 exit | E1: Exit process | F1: Court pack | G1: Settled claims
A2: 2013-14 | B2: =SUM('Backing Sheet Data'!#REF!) ->  | C2: =SUM('Backing Sheet Data'!#REF!) ->  | D2: =SUM('Backing Sheet Data'!#REF!) ->  | E2: =SUM('Backing Sheet Data'!#REF!) ->  | F2: =SUM('Backing Sheet Data'!#REF!) ->  | G2: =SUM('Backing Sheet Data'!#REF!) -> 
A3: 2014-15 | B3: =SUM('Backing Sheet Data'!#REF!) ->  | C3: =SUM('Backing Sheet Data'!#REF!) ->  | D3: =SUM('Backing Sheet Data'!#REF!) ->  | E3: =SUM('Backing Sheet Data'!#REF!) ->  | F3: =SUM('Backing Sheet Data'!#REF!) ->  | G3: =SUM('Backing Sheet Data'!#REF!) -> 
A4: 2015-16 | B4: =SUM('Backing Sheet Data'!#REF!) ->  | C4: =SUM('Backing Sheet Data'!#REF!) ->  | D4: =SUM('Backing Sheet Data'!#REF!) ->  | E4: =SUM('Backing Sheet Data'!#REF!) ->  | F4: =SUM('Backing Sheet Data'!#REF!) ->  | G4: =SUM('Backing Sheet Data'!#REF!) -> 
A5: 2016-17 | B5: =SUM('Backing Sheet Data'!#REF!) ->  | C5: =SUM('Backing Sheet Data'!#REF!) ->  | D5: =SUM('Backing Sheet Data'!#REF!) ->  | E5: =SUM('Backing Sheet Data'!#REF!) ->  | F5: =SUM('Backing Sheet Data'!#REF!) ->  | G5: =SUM('Backing Sheet Data'!#REF!) -> 
A6: 2017-18 | B6: =SUM('Backing Sheet Data'!#REF!) ->  | C6: =SUM('Backing Sheet Data'!#REF!) ->  | D6: =SUM('Backing Sheet Data'!#REF!) ->  | E6: =SUM('Backing Sheet Data'!#REF!) ->  | F6: =SUM('Backing Sheet Data'!#REF!) ->  | G6: =SUM('Backing Sheet Data'!#REF!) -> 
A7: 2018-19 | B7: =SUM('Backing Sheet Data'!#REF!) ->  | C7: =SUM('Backing Sheet Data'!#REF!) ->  | D7: =SUM('Backing Sheet Data'!#REF!) ->  | E7: =SUM('Backing Sheet Data'!#REF!) ->  | F7: =SUM('Backing Sheet Data'!#REF!) ->  | G7: =SUM('Backing Sheet Data'!#REF!) -> 
A8: 2019-20 | B8: =SUM('Backing Sheet Data'!#REF!) ->  | C8: =SUM('Backing Sheet Data'!#REF!) ->  | D8: =SUM('Backing Sheet Data'!#REF!) ->  | E8: =SUM('Backing Sheet Data'!#REF!) ->  | F8: =SUM('Backing Sheet Data'!#REF!) ->  | G8: =SUM('Backing Sheet Data'!#REF!) -> 
A9: 2020-21 | B9: =SUM('Backing Sheet Data'!#REF!) ->  | C9: =SUM('Backing Sheet Data'!#REF!) ->  | D9: =SUM('Backing Sheet Data'!#REF!) ->  | E9: =SUM('Backing Sheet Data'!#REF!) ->  | F9: =SUM('Backing Sheet Data'!#REF!) ->  | G9: =SUM('Backing Sheet Data'!#REF!) -> 
